bitfinex/quotes_ETHUSD_20250724
["timestamp","ask_amount","ask_price","bid_price","bid_amount"]
[1753382753314,1.9618,3742.2,3742.1,0.001]
[1753382753522,2.4204,3742.2,3742.1,0.001]
[1753382753681,5.11936302,3742.2,3742.1,0.001]
[1753382753880,2.44713813,3742.2,3742.1,0.001]
[1753382754107,5.11936302,3742.2,3742.1,0.001]
[1753382754378,2.4204,3742.2,3742.1,0.001]
[1753382754590,1.502,3742.2,3742.1,0.001]
[1753382754777,0.952,3742.2,3742.1,0.001]
[1753382755379,4.9902,3742.5,3742.4,2.67208208]
[1753382755613,0.8988,3742.5,3742.4,2.67208208]
[1753382756120,0.8988,3742.5,3742.1,2.67325872]
[1753382756321,0.8988,3742.5,3742.3,2.6720923]
[1753382756615,0.8988,3742.5,3742.4,2.67208208]
[1753382756980,0.8988,3742.5,3742.1,0.001]
[1753382757217,1.49513813,3742.4,3742.1,0.001]
[1753382757414,0.6836,3742.2,3742.1,0.001]
[1753382757929,12.16912489,3742.2,3742.1,0.001]
[1753382758212,12.74143673,3742.2,3742.1,0.001]
[1753382758522,26.66912489,3742.2,3742.1,0.001]
[1753382758706,26.67012489,3742.2,3742.1,0.001]
[1753382759080,13.87012489,3742.2,3742.1,0.001]
[1753382760239,14.44181463,3742.2,3742.1,0.001]
[1753382760820,11.76958974,3742.2,3742.1,0.001]
[1753382761144,14.44181463,3742.2,3742.1,0.001]
[1753382761303,4.02263913,3741.9,3741.8,1e-08]
[1753382761505,7.02299627,3741.4,3741.3,0.001]
[1753382761811,0.8108,3740.5,3739.9,2.67384672]
[1753382762054,4.78,3740.4,3739.8,2.67393627]
[1753382762268,0.02673813,3740.3,3739.7,2.6739639]
[1753382762544,0.55,3740.2,3739.6,2.67407327]
[1753382762844,1.0086,3740.2,3739.7,2.67400114]
[1753382763045,1.0086,3740.2,3739.5,2.67512715]
[1753382763046,0.8108,3740.5,3740.4,2.67351085]
[1753382763209,0.8108,3740.5,3740.1,0.4527]
[1753382763561,1.49513813,3740.4,3740.1,0.001]
[1753382763843,5.5366,3740.3,3740.1,0.001]
[1753382764055,6.97525381,3740.2,3740.1,0.001]
[1753382764222,7.89365381,3740.2,3740.1,0.001]
[1753382764407,5.22,3740.2,3740.1,0.001]
[1753382764607,12.15165381,3740.2,3740.1,0.001]
[1753382764823,9.478,3740.2,3740.1,0.001]
[1753382765221,5.5606,3740.2,3740.1,0.001]
[1753382766024,1.3016,3740.2,3740.1,0.001]
[1753382766227,6.478,3740.2,3740.1,0.001]
[1753382766431,9.15165381,3740.2,3740.1,0.001]
[1753382766736,12.15165381,3740.2,3740.1,0.001]
[1753382767237,9.478,3740.2,3740.1,0.001]
[1753382767435,4.3016,3740.2,3740.1,0.001]
[1753382767649,8.5596,3740.2,3740.1,0.001]
[1753382767815,1.4352,3740.2,3740.1,0.001]
[1753382768016,4.9416,3740.2,3740.1,2.6747253]
[1753382768243,0.6836,3740.2,3740.1,2.6747253]
[1753382768411,4.9416,3740.2,3740.1,2.6747253]
[1753382768616,4.9416,3740.2,3740.1,3.1264253]
[1753382768917,4.9416,3740.2,3740.1,2.6747253]
[1753382769763,4.9416,3740.2,3740.1,0.001]
[1753382770169,5.86,3740.2,3740.1,0.001]
[1753382770663,8.86,3740.2,3740.1,0.001]
[1753382770828,8.50862834,3740.2,3740.1,0.001]
[1753382771253,9.42702834,3740.2,3740.1,0.001]
[1753382772341,5.50862834,3740.2,3740.1,2.6747253]
[1753382772667,0.1336,3740.2,3740.1,3.1264253]
[1753382772867,4.3846,3740.2,3740.1,3.1264253]
[1753382773055,4.3846,3740.2,3740.1,3.5638253]
[1753382773572,4.9346,3740.2,3740.1,0.001]
[1753382773765,5.853,3740.2,3740.1,0.001]
[1753382773950,9.31055381,3740.2,3740.1,0.001]
[1753382774127,9.88158215,3740.2,3740.1,0.001]
[1753382774330,12.88158215,3740.2,3740.1,0.001]
[1753382776166,12.88158215,3740.2,3740.1,1e-08]
[1753382776573,14.31000302,3740.2,3740.1,1e-08]
[1753382776738,14.31000302,3740.2,3739.5,0.001]
[1753382776739,4.01038278,3739.6,3739.5,0.001]
[1753382776944,11.96201112,3739.6,3739.5,0.001]
[1753382777249,5.04092834,3739.6,3739.5,0.001]
[1753382777461,8.74363813,3739.6,3739.5,0.001]
[1753382777776,9.28792834,3739.6,3739.5,0.001]
[1753382777978,9.77632834,3739.6,3739.5,0.001]
[1753382778161,4.49092834,3739.6,3739.5,0.001]
[1753382778474,0.70462834,3739.6,3739.5,3.59445429]
[1753382778676,0.57102834,3739.6,3739.5,3.59445429]
[1753382778874,4.81902834,3739.8,3739.7,2.67401128]
[1753382779040,4.248,3739.8,3739.7,2.67401128]
[1753382779241,0.1336,3739.9,3739.8,2.67393978]
[1753382779538,0.57102834,3739.9,3739.8,2.67393978]
[1753382779747,0.57102834,3740.1,3740.0,3.43809679]
[1753382779974,0.57102834,3740.3,3740.2,2.67365381]
[1753382780240,4.246,3740.5,3740.4,2.67351085]
[1753382780435,0.57250023,3740.5,3740.4,3.59281085]
[1753382782653,0.1336,3740.7,3740.6,2.6733679]
[1753382782862,1e-08,3740.7,3740.6,4.39790157]
[1753382783067,0.1336,3741.7,3741.6,2.67265341]
[1753382783356,1.33469052,3741.9,3741.8,2.67251055]
[1753382783556,0.1336,3741.9,3741.8,2.67251055]
[1753382783770,0.1336,3741.9,3741.8,3.59181055]
[1753382784548,1.35041922,3742.1,3742.0,2.67236771]
[1753382784851,1.35041922,3742.1,3742.0,3.59166771]
[1753382784852,0.39813435,3742.1,3742.0,3.59166771]
[1753382785072,7.03188487,3742.2,3742.1,2.6722963]
[1753382785388,7.43036703,3742.2,3742.1,3.1304963]
[1753382786289,7.28093623,3742.2,3742.1,3.1304963]
[1753382786485,6.32865136,3742.2,3742.1,3.1304963]
[1753382788349,6.32865136,3742.2,3741.6,1.2367]
[1753382788687,1.8336,3742.2,3742.1,2.6722963]
[1753382788860,1.7,3742.2,3742.1,3.1333963]
[1753382789050,1.7,3742.2,3742.1,3.5915963]
[1753382789881,1.7,3742.2,3741.9,0.1336]
[1753382790065,1.7,3742.2,3742.0,3.13056171]
[1753382790369,5.935,3742.2,3742.0,2.67235993]
[1753382790698,0.1336,3742.1,3742.0,2.67234854]
[1753382791567,0.1336,3742.1,3742.0,3.13054854]
[1753382792191,1.7,3742.2,3742.1,2.6722963]
[1753382792391,1.7,3742.2,3742.1,3.5915963]
[1753382793014,1.7,3742.2,3742.1,4.56121926]
[1753382793200,1.7,3742.2,3742.1,4.5344963]
[1753382793809,1.7,3742.2,3742.1,8.7664963]
[1753382793963,1.7,3742.2,3742.1,4.4008963]
[1753382796495,1.7,3742.2,3742.1,2.6722963]
[1753382796696,1.7,3742.2,3742.1,3.5915963]
[1753382798867,1.7,3742.2,3742.1,3.1333963]
[1753382799074,1.7,3742.2,3742.1,7.3534963]
[1753382799270,1.7,3742.2,3742.1,7.8145963]
[1753382800012,1.7,3742.2,3742.1,2.6722963]
[1753382800181,1.7,3742.2,3742.1,3.1304963]
[1753382800886,1.7,3742.2,3742.1,3.5915963]
[1753382801692,0.1336,3742.5,3742.4,2.67208208]
[1753382802310,0.8047,3743.3,3742.4,1.75532082]
[1753382802514,6.958,3743.4,3743.3,2.67143963]
[1753382802830,0.1336,3743.3,3742.9,0.4611]
[1753382803021,0.1336,3743.3,3743.2,2.671511]
[1753382803816,0.1336,3743.3,3743.0,2.67158886]
[1753382804124,5.0227,3743.6,3742.2,9.11624312]
[1753382804125,1.4573,3743.1,3742.3,0.4582]
[1753382804324,0.1336,3742.9,3742.7,2.67186706]
[1753382804480,0.1336,3742.7,3742.6,2.67186818]
[1753382804810,0.1336,3742.7,3742.6,3.59116818]
[1753382804979,4.218,3743.3,3743.0,2.67158343]
[1753382805179,0.1336,3743.1,3743.0,2.67158343]
[1753382805601,0.7737,3743.5,3743.4,2.67136827]
[1753382805918,4.3516,3743.5,3743.3,2.67141439]
[1753382806084,0.1336,3743.3,3743.2,2.67149399]
[1753382806283,0.1336,3743.3,3743.1,2.67156093]
[1753382806509,0.1336,3743.3,3743.2,2.671511]
[1753382808078,0.002,3743.7,3743.6,2.67122555]
[1753382808284,0.1336,3743.4,3743.3,2.67143963]
[1753382808482,4.213,3743.5,3743.4,2.67136827]
[1753382809027,4.3466,3743.5,3743.4,2.67136827]
[1753382811854,0.1336,3743.5,3743.4,3.57376827]
[1753382811986,0.002,3743.7,3743.6,2.67122555]
[1753382812680,0.002,3743.7,3743.6,3.57362555]
[1753382819213,0.002,3743.7,3743.6,2.67122555]
[1753382819595,0.002,3743.7,3743.6,3.13172555]
[1753382819794,0.002,3743.7,3743.6,3.57362555]
[1753382820356,0.002,3743.7,3742.5,0.4605]
[1753382820357,0.55,3743.5,3742.5,0.4605]
[1753382820497,0.8241,3743.6,3741.7,6.82675621]
[1753382820498,0.8241,3742.8,3742.3,2.67214258]
[1753382820813,0.1336,3742.6,3742.3,2.67210229]
[1753382821217,0.52283813,3742.7,3741.9,0.5941]
[1753382821549,0.1336,3742.1,3742.0,2.67236771]
[1753382821695,5.0241,3742.8,3742.5,2.6719403]
[1753382821912,0.1336,3742.6,3742.5,2.6719403]
[1753382822240,0.1336,3742.6,3742.4,2.67207645]
[1753382822397,0.1336,3742.6,3742.5,2.67201068]
[1753382822595,0.781,3743.1,3742.3,7.80127016]
[1753382822939,0.781,3743.1,3742.8,2.67173167]
[1753382823447,0.1336,3742.9,3742.7,2.67186452]
[1753382823732,0.1336,3742.9,3742.4,0.4605]
[1753382824023,0.1336,3742.9,3742.8,2.67179651]
[1753382824196,0.1336,3742.9,3742.7,2.67184821]
[1753382824595,0.1336,3742.9,3742.8,2.67179651]
[1753382825821,0.1336,3742.9,3742.4,0.4605]
[1753382826129,0.6297,3742.9,3742.3,2.67212673]
[1753382826430,0.6297,3742.9,3742.2,0.1336]
[1753382826601,0.1336,3742.5,3742.4,2.67207953]
[1753382827434,0.1336,3742.5,3742.4,3.57447953]
[1753382827726,0.1336,3742.8,3742.7,2.6718679]
[1753382828436,0.002,3743.1,3743.0,2.67165375]
[1753382828652,0.002,3743.1,3743.0,3.57405375]
[1753382828948,0.1356,3743.1,3743.0,3.57405375]
[1753382830302,0.002,3743.1,3743.0,3.57405375]
[1753382831936,0.002,3743.1,3743.0,3.60077028]
[1753382832325,0.002,3743.1,3743.0,4.39875375]
[1753382832919,0.002,3743.1,3743.0,3.57405375]
[1753382834752,0.002,3743.1,3742.7,2.6718591]
[1753382835047,0.1336,3742.9,3742.8,6.87179651]
[1753382835340,0.1336,3742.9,3742.8,2.67179651]
[1753382836134,0.1336,3742.9,3742.8,3.15079651]
[1753382838851,0.1336,3742.9,3742.7,2.67181653]
[1753382839032,0.5765,3742.9,3742.8,2.67179651]
[1753382839209,0.1336,3742.9,3742.8,2.67179651]
[1753382840151,0.1336,3742.9,3742.8,3.15079651]
[1753382842737,0.1336,3742.9,3742.8,2.67179651]
[1753382844044,0.1336,3742.9,3742.8,3.15079651]
[1753382844351,0.1336,3742.9,3742.8,3.61949651]
[1753382844528,0.1336,3742.9,3742.8,12.7383927]
[1753382844529,0.9336,3742.9,3742.8,12.7383927]
[1753382844850,0.8,3742.9,3742.8,16.9373927]
[1753382845520,0.8,3742.9,3742.8,7.81849651]
[1753382847628,0.8,3742.9,3742.8,17.7362927]
[1753382847830,0.8,3742.9,3742.8,17.8698927]
[1753382850437,0.002,3743.1,3743.0,2.67165375]
[1753382850623,1e-08,3743.1,3743.0,6.89637028]
[1753382850829,1e-08,3743.1,3743.0,7.95095375]
[1753382852137,1e-08,3743.1,3743.0,3.75295375]
[1753382852332,1e-08,3743.1,3743.0,7.95095375]
[1753382855046,1e-08,3743.1,3743.0,3.28425375]
[1753382855246,1e-08,3743.1,3743.0,7.48225375]
[1753382856557,1e-08,3743.1,3742.2,2.67220498]
[1753382856558,0.79940001,3743.1,3741.9,1.2874]
[1753382856743,0.57673813,3743.0,3742.1,0.479]
[1753382856944,1.0178,3743.0,3742.1,0.479]
[1753382857345,1.0178,3743.0,3742.6,2.67192376]
[1753382857558,1.0178,3743.0,3741.8,0.479]
[1753382857559,0.9107,3742.9,3741.8,0.479]
[1753382857857,1.37613813,3742.8,3742.1,2.67224401]
[1753382858228,0.9107,3742.7,3742.1,2.67224401]
[1753382858433,0.9107,3742.7,3741.8,4.676]
[1753382858434,0.55,3742.4,3741.8,2.67244798]
[1753382858632,1.30183813,3742.3,3741.9,2.67239953]
[1753382858857,0.8073,3742.3,3742.0,2.67235663]
[1753382859056,0.8073,3742.3,3741.7,6.86952065]
[1753382859057,1.2751,3742.3,3741.7,6.86952065]
[1753382859348,1.2751,3742.3,3741.9,2.67240476]
[1753382859662,1.2751,3742.3,3742.0,2.67236042]
[1753382860933,0.8073,3742.3,3742.2,2.67222489]
[1753382861162,0.8163,3742.8,3742.7,2.6718679]
[1753382861332,0.8163,3742.8,3742.6,2.67191641]
[1753382861660,0.8163,3742.8,3742.6,2.67187996]
[1753382861959,0.8163,3742.8,3742.0,9.11889619]
[1753382861960,0.55,3742.7,3742.0,9.11889619]
[1753382862129,0.02673813,3742.6,3742.0,2.67236771]
[1753382862460,1.3634,3742.5,3741.8,4.197]
[1753382862764,0.4678,3742.4,3742.0,2.67234558]
[1753382862927,0.4678,3742.4,3742.1,2.67228726]
[1753382863132,0.4678,3742.4,3742.0,2.67233087]
[1753382863731,1.3634,3742.5,3742.2,2.67219639]
[1753382863934,1.3634,3742.5,3742.3,2.67213889]
[1753382864133,1.3634,3742.5,3742.2,2.6722027]
[1753382864330,0.8134,3742.5,3742.4,2.67208208]
[1753382864733,0.8134,3742.5,3742.3,2.67209969]
[1753382864933,0.8134,3742.5,3742.4,2.67208208]
[1753382865130,0.7901,3742.8,3742.4,0.479]
[1753382865363,0.7901,3742.8,3742.7,2.6718679]
[1753382865568,0.79010001,3743.1,3742.1,4.197]
[1753382865868,0.79010001,3743.1,3742.3,2.67213784]
[1753382865869,0.4646,3742.8,3742.3,2.67213784]
[1753382866049,0.94003813,3742.7,3742.3,2.67213784]
[1753382866243,1.3671,3742.5,3742.1,2.67227921]
[1753382866567,1.3671,3742.5,3741.6,0.4564]
[1753382866568,0.9133,3742.4,3741.7,2.67257509]
[1753382866768,0.1336,3742.0,3741.6,0.4564]
[1753382867068,0.1336,3742.0,3741.8,2.67250645]
[1753382867462,0.1336,3742.0,3741.9,2.67243913]
[1753382869441,0.1336,3742.0,3741.9,3.12883913]
[1753382869668,0.1336,3742.0,3741.9,2.67243913]
[1753382871048,0.1336,3742.0,3741.9,3.59606352]
[1753382871255,5.0141,3742.5,3742.4,2.67208208]
[1753382871771,5.1477,3742.5,3742.3,2.67212762]
[1753382871986,5.1477,3742.5,3742.4,2.67208208]
[1753382872152,5.1477,3742.5,3742.2,2.67217252]
[1753382872344,5.1477,3742.5,3742.4,2.67208208]
[1753382873264,5.1477,3742.5,3742.3,2.67214662]
[1753382873463,5.0141,3742.5,3742.3,2.67214662]
[1753382873672,0.1336,3742.4,3742.3,2.67214662]
[1753382875753,0.1336,3742.4,3742.3,3.56904662]
[1753382876076,1e-08,3743.1,3743.0,3.47325375]
[1753382876447,1e-08,3743.1,3743.0,4.37015375]
[1753382876650,1e-08,3743.1,3743.0,4.39687028]
[1753382879146,1e-08,3743.1,3743.0,8.59287028]
[1753382879350,1e-08,3743.1,3743.0,8.56615375]
[1753382882764,1e-08,3743.1,3743.0,4.37015375]
[1753382882964,1e-08,3743.1,3743.0,8.59187028]
[1753382883186,1e-08,3743.1,3743.0,8.56515375]
[1753382883398,0.002,3743.9,3743.6,12.60562174]
[1753382883699,0.002,3743.9,3743.6,16.80062174]
[1753382883900,0.002,3743.9,3743.6,16.93422174]
[1753382884073,0.002,3743.9,3743.6,17.83112174]
[1753382884272,0.002,3743.9,3743.6,8.71222555]
[1753382884472,0.002,3743.9,3743.6,7.45622555]
[1753382885478,0.002,3743.9,3743.6,7.89672555]
[1753382886902,0.002,3743.9,3743.6,2.80482555]
[1753382887201,0.002,3743.9,3743.6,3.70172555]
[1753382887406,0.002,3743.9,3743.6,7.89572555]
[1753382887798,0.002,3743.9,3743.6,7.45522555]
[1753382888876,0.002,3743.9,3743.6,6.99882555]
[1753382889095,0.002,3743.9,3743.6,7.45522555]
[1753382889293,0.002,3743.9,3743.6,7.89572555]
[1753382889815,0.002,3743.9,3743.6,8.66912555]
[1753382891606,0.002,3743.9,3743.6,8.66812555]
[1753382895292,1e-08,3743.7,3743.6,8.66812555]
[1753382895486,0.002,3744.5,3744.4,2.67065484]
[1753382895677,0.002,3744.5,3744.4,7.63095484]
[1753382896000,0.002,3744.5,3744.4,8.70705484]
[1753382898778,0.002,3744.5,3744.1,0.7801]
[1753382898985,0.7851,3744.4,3743.6,0.7801]
[1753382899180,0.7851,3744.4,3744.3,2.67072617]
[1753382899181,0.9187,3744.4,3744.3,2.67072617]
[1753382901620,0.002,3744.5,3744.4,3.47675484]
[1753382901827,0.002,3744.5,3744.4,8.60925484]
[1753382902189,0.002,3744.6,3744.5,2.67058352]
[1753382902385,0.002,3744.6,3744.5,3.63978935]
[1753382902585,0.002,3744.6,3744.5,3.77338935]
[1753382906338,0.002,3744.6,3744.5,6.99318352]
[1753382906537,0.002,3744.6,3744.5,7.46138352]
[1753382906692,0.002,3744.6,3744.5,3.74668352]
[1753382906892,1e-08,3744.6,3744.5,7.96238935]
[1753382907106,1e-08,3744.6,3744.5,7.93568352]
[1753382908932,0.002,3745.2,3745.1,2.67015567]
[1753382909100,1e-08,3745.2,3745.1,16.76235186]
[1753382909293,1e-08,3745.2,3745.1,17.83845186]
[1753382911034,0.002,3746.0,3745.9,3.45388541]
[1753382911333,0.002,3746.0,3745.9,7.64188541]
[1753382911334,1e-08,3746.0,3745.9,7.64188541]
[1753382911630,1e-08,3746.0,3745.9,8.58438541]
[1753382912436,0.05,3747.2,3747.0,2.6688017]
[1753382912595,0.05,3747.2,3745.9,8.1305]
[1753382912596,0.39861438,3747.7,3747.6,2.66837442]
[1753382912794,0.71634909,3748.1,3747.9,2.66816083]
[1753382912990,0.71634909,3748.1,3748.0,6.85508964]
[1753382913195,0.9721423,3748.5,3748.1,2.66801846]
[1753382913196,0.71634909,3748.3,3748.1,2.66801846]
[1753382913429,0.71634909,3748.5,3748.3,2.6678761]
[1753382913737,0.71634909,3748.5,3748.4,2.66780493]
[1753382914291,0.71634909,3748.6,3748.5,2.66773376]
[1753382914830,0.71634909,3748.6,3748.0,4.187]
[1753382914831,1.89648487,3748.6,3748.0,4.187]
[1753382915034,0.71549389,3748.3,3747.8,2.66820018]
[1753382915236,0.71549389,3748.2,3747.9,4.187]
[1753382915406,1.17299389,3748.2,3748.0,4.187]
[1753382915594,0.9442,3748.1,3747.3,0.53304838]
[1753382915795,0.55,3747.9,3747.4,4.187]
[1753382916014,0.55,3747.9,3747.3,4.72004838]
[1753382916015,0.55,3747.7,3747.3,4.72004838]
[1753382916300,0.9442,3747.6,3747.3,4.72004838]
[1753382916500,0.57673813,3747.7,3747.3,4.72004838]
[1753382916501,0.24908392,3747.8,3747.3,4.72004838]
[1753382916822,0.71549389,3748.2,3747.4,0.96918516]
[1753382916994,1.20219389,3748.3,3747.5,4.6542]
[1753382917199,1.20219389,3748.3,3747.7,2.66824745]
[1753382917396,0.55,3747.9,3747.3,0.53304838]
[1753382917714,0.02673813,3747.8,3747.3,0.53304838]
[1753382917892,0.6639,3747.7,3747.3,0.53304838]
[1753382918220,0.73578392,3748.1,3747.4,0.4682]
[1753382918532,0.4867,3748.1,3747.8,2.66823091]
[1753382918902,0.55,3748.1,3747.5,6.85443256]
[1753382919097,0.55,3748.1,3747.8,2.6682206]
[1753382919424,0.8077,3748.2,3747.7,4.185]
[1753382919597,0.8077,3748.2,3747.8,2.66816803]
[1753382919793,0.8077,3748.2,3747.7,4.185]
[1753382920028,0.55,3748.0,3747.4,4.185]
[1753382920200,0.55,3747.8,3747.4,4.185]
[1753382920403,0.55,3747.8,3747.1,2.66871432]
[1753382920602,0.95205098,3749.3,3746.8,0.4682]
[1753382920603,0.8035,3747.5,3747.2,4.185]
[1753382921028,0.8035,3747.5,3747.3,2.66853707]
[1753382921335,0.55,3748.0,3747.6,2.66836541]
[1753382921336,0.8064,3747.8,3747.6,2.66836541]
[1753382921506,0.8064,3747.8,3747.3,0.4682]
[1753382921507,1.2931,3747.8,3747.4,6.85351683]
[1753382921838,1.2931,3747.8,3747.5,2.66843679]
[1753382922042,1.2931,3747.8,3747.4,4.185]
[1753382922203,0.4867,3747.7,3747.4,4.185]
[1753382922405,3.21843332,3747.6,3746.6,2.66908663]
[1753382922740,0.7808,3746.8,3745.7,0.4682]
[1753382922903,0.55,3746.6,3745.5,1.33450429]
[1753382923102,0.1336,3746.2,3746.1,2.66943762]
[1753382923298,0.6639,3746.7,3746.2,2.66930337]
[1753382923511,0.1336,3746.4,3746.0,2.66951414]
[1753382923713,0.6203,3746.4,3746.0,2.66951414]
[1753382923912,0.5703,3746.4,3746.0,2.66951414]
[1753382924113,0.7592,3746.2,3745.7,4.184]
[1753382924312,0.6203,3746.1,3745.6,6.85375085]
[1753382924541,0.6203,3746.1,3745.6,4.184]
[1753382924754,0.6203,3746.1,3745.9,2.66952248]
[1753382924957,0.1336,3746.1,3745.9,2.66952248]
[1753382925138,0.1336,3746.1,3746.0,2.66951414]
[1753382925340,2.66903768,3746.7,3746.0,2.66951414]
[1753382925341,0.7577,3746.9,3746.2,2.66936589]
[1753382925543,0.55,3746.6,3746.2,2.66937162]
[1753382925714,0.1336,3746.4,3746.3,2.66923488]
[1753382926823,0.1336,3746.4,3746.3,3.12293488]
[1753382927159,0.1336,3746.4,3746.3,2.66923488]
[1753382927537,0.1336,3746.4,3746.1,2.66943805]
[1753382927538,0.1336,3746.5,3746.4,2.66918304]
[1753382928275,0.1336,3746.5,3746.2,7.30806097]
[1753382928276,0.1336,3746.5,3746.3,2.66928879]
[1753382928651,0.1336,3746.5,3745.9,0.1336]
[1753382928833,0.1336,3746.5,3746.1,2.66943281]
[1753382929037,0.6178,3746.5,3746.2,2.66936199]
[1753382929233,0.6178,3746.5,3746.4,2.66922912]
[1753382929464,0.1336,3746.5,3746.4,2.66922912]
[1753382929850,0.1336,3746.5,3745.9,0.5873]
[1753382930059,0.6178,3746.5,3746.0,4.185]
[1753382930262,0.6178,3746.5,3746.2,2.66935964]
[1753382930672,0.6178,3746.5,3746.3,2.66925046]
[1753382931379,0.6178,3746.5,3746.4,2.66922912]
[1753382931380,0.1336,3746.5,3746.4,2.66922912]
[1753382931581,0.7577,3746.9,3746.8,2.66894416]
[1753382931868,0.8913,3746.9,3746.8,2.66894416]
[1753382932097,0.1336,3746.9,3746.8,2.66894416]
[1753382932275,0.1336,3746.9,3746.8,3.12264416]
[1753382932476,0.1336,3747.5,3747.2,2.66863346]
[1753382932665,0.1336,3747.5,3747.0,2.80238318]
[1753382932863,0.1336,3747.5,3747.1,2.66873048]
[1753382933176,0.1336,3747.5,3747.2,2.66864977]
[1753382933576,0.1336,3747.5,3747.3,2.66858805]
[1753382933898,0.1336,3747.5,3747.0,2.80239892]
[1753382934193,0.1336,3747.5,3747.3,2.66858805]
[1753382934554,0.1336,3747.5,3747.3,3.58818805]
[1753382934967,0.1336,3747.5,3747.3,3.12228805]
[1753382935387,0.1336,3747.5,3747.3,2.66858805]
[1753382937701,0.1336,3747.5,3747.3,3.12228805]
[1753382937997,0.1336,3747.5,3747.3,3.58818805]
[1753382938200,0.1336,3747.5,3747.4,2.66851683]
[1753382938389,0.8249,3748.0,3747.3,3.58818805]
[1753382938390,1.3749,3748.0,3747.9,2.66816083]
[1753382938884,0.9585,3748.0,3747.9,2.66816083]
[1753382939085,0.002,3748.2,3748.1,2.66801846]
[1753382939534,0.002,3748.2,3748.1,3.12171846]
[1753382940094,0.002,3748.2,3748.1,2.66801846]
[1753382940399,0.002,3748.2,3747.7,0.4537]
[1753382940599,0.1336,3748.1,3748.0,2.66804051]
[1753382941017,0.1336,3748.1,3747.9,0.4537]
[1753382941332,0.8114,3747.9,3747.5,4.183]
[1753382941631,0.6178,3747.8,3747.4,2.66846404]
[1753382942134,0.6178,3747.8,3747.4,6.85146404]
[1753382942429,0.1336,3747.8,3747.7,2.66830322]
[1753382942648,0.1336,3747.8,3747.5,4.6367]
[1753382942847,0.1336,3747.8,3747.5,4.183]
[1753382943021,0.1336,3747.8,3747.7,2.66830322]
[1753382943215,0.57673813,3747.8,3747.5,4.183]
[1753382943435,0.1336,3747.6,3747.4,2.66845627]
[1753382943632,0.1336,3747.6,3747.4,4.183]
[1753382943808,0.1336,3747.6,3747.1,0.1336]
[1753382944011,0.1336,3747.6,3747.2,2.66859805]
[1753382944214,0.1336,3747.6,3747.5,2.66844563]
[1753382944414,0.1336,3747.6,3747.4,2.66850046]
[1753382944717,0.1336,3747.6,3747.3,2.66856921]
[1753382944911,0.1336,3747.6,3747.4,2.66849751]
[1753382945333,0.1336,3747.6,3747.5,2.66844563]
[1753382946274,0.1336,3747.6,3747.5,3.58804563]
[1753382947191,0.002,3748.2,3748.0,2.66808876]
[1753382947321,0.002,3748.2,3748.1,2.66801846]
[1753382947765,0.002,3748.2,3748.1,3.12171846]
[1753382948740,0.0856,3748.3,3748.2,2.66794728]
[1753382948936,0.0856,3748.3,3748.1,0.4537]
[1753382949256,0.0856,3748.3,3748.2,3.12164728]
[1753382950446,0.1336,3748.5,3748.2,0.4537]
[1753382950759,0.1336,3748.5,3748.3,0.4537]
[1753382951157,0.1336,3748.5,3748.1,3.13389433]
[1753382951366,0.1336,3748.5,3748.1,2.66799433]
[1753382951570,0.1336,3748.5,3748.2,3.1215981]
[1753382951866,0.1336,3748.5,3748.2,3.12162225]
[1753382952025,0.1336,3748.5,3748.2,0.4537]
[1753382952234,0.1336,3748.5,3748.0,2.66803941]
[1753382952567,0.1336,3748.5,3747.8,7.44972544]
[1753382952568,0.1336,3748.5,3747.9,2.66816083]
[1753382952785,0.57673813,3748.4,3747.9,2.6680947]
[1753382953069,0.1336,3748.2,3748.1,2.66801846]
[1753382953251,0.1336,3748.2,3747.9,0.4537]
[1753382953560,0.02673813,3748.2,3747.7,4.181]
[1753382953725,0.9401,3747.9,3747.6,2.66836758]
[1753382953933,0.9401,3747.9,3747.3,0.1336]
[1753382954260,0.9401,3747.9,3747.3,4.3146]
[1753382954462,0.8154,3748.3,3747.6,2.66833165]
[1753382954694,0.002,3748.5,3748.3,2.66781462]
[1753382954913,0.1356,3748.5,3747.9,0.9123]
[1753382955057,0.1356,3748.5,3747.9,3.58043507]
[1753382955250,0.1356,3748.5,3748.0,3.58762485]
[1753382955565,0.1356,3748.5,3748.1,2.66796153]
[1753382955985,0.1356,3748.5,3748.2,3.16753298]
[1753382956274,0.1356,3748.5,3747.9,0.1336]
[1753382956588,0.1336,3748.1,3747.8,2.6681752]
[1753382957145,0.1336,3748.1,3747.9,2.66815266]
[1753382957353,0.1336,3748.1,3747.9,2.66813499]
[1753382957582,0.1336,3748.1,3747.9,2.6681518]
[1753382957782,0.55,3748.0,3747.6,2.66831556]
[1753382957986,0.55,3748.0,3747.7,2.66829839]
[1753382958174,0.55,3748.1,3747.8,2.66822427]
[1753382958370,1.0278,3748.1,3747.7,2.66829923]
[1753382958578,1.0278,3748.1,3747.3,4.181]
[1753382958764,0.1336,3747.7,3747.6,2.66837442]
[1753382960994,0.0836,3747.7,3747.6,2.66837442]
[1753382962190,0.0836,3747.7,3747.3,0.4996]
[1753382962398,0.8154,3747.6,3747.4,2.66847149]
[1753382962566,0.8154,3747.6,3747.5,2.66844563]
[1753382963668,0.0836,3747.7,3747.6,2.66837442]
[1753382963869,0.0836,3747.7,3747.6,3.16797442]
[1753382965212,0.0836,3747.7,3747.6,2.66837442]
[1753382968081,0.0836,3747.7,3747.6,3.16797442]
[1753382968284,0.0836,3747.7,3747.6,2.66837442]
[1753382968989,0.0836,3747.7,3747.6,3.16797442]
[1753382969200,0.0836,3747.7,3747.6,2.66837442]
[1753382969500,0.0836,3747.7,3747.5,2.66844144]
[1753382970083,0.55,3747.6,3747.1,0.1336]
[1753382970427,0.55,3747.6,3746.4,0.4996]
[1753382970428,3.21879409,3747.1,3746.3,2.66928511]
[1753382970605,3.21879409,3747.1,3746.1,2.80403482]
[1753382970606,0.55,3746.9,3746.1,2.67043482]